Workbook

Sheet 监护、心电图机类
A1: 监护、心电图机类配件价目表
B2: 公司名称： | J2: 单位：元
A3: 适配机型 | B3: 配件名称 | C3: 原厂 | H3: 兼容
C4: 最高限价（单价） | D4: 报价 | E4: 预计采购数量 | F4: 最高限价（合计） | G4: 维修费用（合计） | H4: 最高限价（单价） | I4: 报价 | J4: 预计采购数量 | K4: 最高限价（合计） | L4: 维修费用（合计）
A5: 迈瑞T5/T8/IMEC10 | B5: 液晶屏 | C5: 950 | E5: 3 | F5: =C5*E5 -> 2850
B6: 触摸屏 | C6: 50 | E6: 3 | F6: 150
B7: 电源板 | C7: 600 | E7: 3 | F7: =C7*E7 -> 1800
B8: 主板 | C8: 1500 | E8: 2 | F8: 3000
B9: 高压板 | C9: 50 | E9: 4 | F9: 200
B10: 血压板 | C10: 600 | E10: 4 | F10: 2400
B11: 血氧板 | C11: 700 | E11: 4 | F11: 2800
B12: 心电板 | C12: 700 | E12: 2 | F12: 1400
B13: 按键板 | C13: 20 | E13: 2 | F13: 40
B14: 血氧心电插槽 | C14: 7 | E14: 2 | F14: 14
B15: 外壳 | C15: 50 | E15: 2 | F15: 100
B16: 电池 | C16: 380 | E16: 2 | F16: 760
B17: 主板电池 | C17: 80 | E17: 2 | F17: 160
B18: 气泵 | C18: 300 | E18: 5 | F18: 1500 | H18: 110 | J18: 2 | K18: =H18*J18 -> 220
B19: 压力传感器 | C19: 50 | E19: 2 | F19: 100
B20: 放气阀 | C20: 300 | E20: 2 | F20: 600 | H20: 120 | J20: 2 | K20: 240
B21: 编码器 | C21: 100 | E21: 2 | F21: 200 | H21: 200 | J21: 2 | K21: 400
B22: 背光灯 | C22: 40 | E22: 2 | F22: 80
B23: 散热风扇 | C23: 7 | E23: 2 | F23: 14
B24: 双有创模块 | C24: 1700 | E24: 2 | F24: 3400
B25: 二氧化碳模块 | C25: 300 | E25: 2 | F25: 600
B26: BIS模块 | C26: 300 | E26: 2 | F26: 600
B27: 导联线 | C27: 180 | E27: 1 | F27: 180 | H27: 150 | J27: 30 | K27: =H27*J27 -> 4500
B28: 指脉氧 | C28: 180 | E28: 1 | F28: 180 | H28: 150 | J28: 30 | K28: 4500
B29: 血压袖带 | C29: 40 | E29: 1 | F29: 40 | H29: 40 | J29: 30 | K29: 1200
A30: 迈瑞PM7000/8000/9000 | B30: 液晶屏 | C30: 750 | E30: 3 | F30: 2250
B31: 触摸屏 | C31: 50 | E31: 3 | F31: 150
B32: 电源板 | C32: 600 | E32: 2 | F32: 1200
B33: 主板 | C33: 1000 | E33: 2 | F33: 2000
B34: 高压板 | C34: 50 | E34: 4 | F34: 200
B35: 血压板 | C35: 600 | E35: 4 | F35: 2400
B36: 血氧板 | C36: 700 | E36: 4 | F36: 2800
B37: 心电板 | C37: 700 | E37: 2 | F37: 1400
B38: 按键板 | C38: 5.5 | E38: 2 | F38: 11
B39: 血氧心电插槽 | C39: 7 | E39: 2 | F39: 14
B40: 外壳 | C40: 50 | E40: 2 | F40: 100
B41: 电池 | C41: 280 | E41: 2 | F41: 560
B42: 主板电池 | C42: 80 | E42: 2 | F42: 160
B43: 气泵 | C43: 300 | E43: 5 | F43: 1500 | H43: 110 | J43: 2 | K43: =H43*J43 -> 220
B44: 压力传感器 | C44: 50 | E44: 2 | F44: 100
B45: 放气阀 | C45: 300 | E45: 2 | F45: 600 | H45: 120 | J45: 2 | K45: =H45*J45 -> 240
B46: 编码器 | C46: 100 | E46: 2 | F46: 200
B47: 背光灯 | C47: 40 | E47: 2 | F47: 80
B48: 散热风扇 | C48: 7 | E48: 2 | F48: 14
B49: 双有创模块 | C49: 300 | E49: 2 | F49: 600
B50: 二氧化碳模块 | C50: 300 | E50: 2 | F50: 600
B51: BIS模块 | C51: 300 | E51: 2 | F51: 600
B52: 导联线 | C52: 180 | E52: 1 | F52: 180 | H52: 150 | J52: 30 | K52: =H52*J52 -> 4500
B53: 指脉氧 | C53: 180 | E53: 1 | F53: 180 | H53: 150 | J53: 30 | K53: 4500
B54: 血压袖带 | C54: 40 | E54: 1 | F54: 40 | H54: 40 | J54: 30 | K54: 1200
A55: 迈瑞MEC2000 | B55: 液晶屏 | C55: 750 | E55: 3 | F55: 2250
B56: 触摸屏 | C56: 50 | E56: 3 | F56: 150
B57: 电源板 | C57: 600 | E57: 2 | F57: 1200
B58: 主板 | C58: 1000 | E58: 2 | F58: 2000
B59: 高压板 | C59: 50 | E59: 4 | F59: 200
B60: 血压板 | C60: 300 | E60: 4 | F60: 1200
B61: 血氧板 | C61: 300 | E61: 4 | F61: 1200
B62: 心电板 | C62: 300 | E62: 2 | F62: 600
B63: 按键板 | C63: 20 | E63: 2 | F63: 40
B64: 血氧心电插槽 | C64: 7 | E64: 2 | F64: 14
B65: 外壳 | C65: 50 | E65: 2 | F65: 100
B66: 电池 | C66: 280 | E66: 2 | F66: 560
B67: 主板电池 | C67: 80 | E67: 2 | F67: 160
B68: 气泵 | C68: 320 | E68: 5 | F68: 1600 | H68: 110 | J68: 2 | K68: =H68*J68 -> 220
B69: 压力传感器 | C69: 50 | E69: 2 | F69: =C69*E69 -> 100
B70: 放气阀 | C70: 260 | E70: 2 | F70: 520 | H70: 120 | J70: 2 | K70: =H70*J70 -> 240
B71: 编码器 | C71: 100 | E71: 2 | F71: 200
B72: 背光灯 | C72: 40 | E72: 2 | F72: 80
B73: 散热风扇 | C73: 7 | E73: 2 | F73: 14
B74: 双有创模块 | C74: 300 | E74: 2 | F74: 600
B75: 二氧化碳模块 | C75: 300 | E75: 2 | F75: 600
B76: BIS模块 | C76: 300 | E76: 2 | F76: 600
B77: 导联线 | C77: 180 | E77: 1 | F77: 180 | H77: 150 | J77: 30 | K77: =H77*J77 -> 4500
B78: 指脉氧 | C78: 180 | E78: 1 | F78: 180 | H78: 150 | J78: 30 | K78: 4500
B79: 血压袖带 | C79: 40 | E79: 1 | F79: 40 | H79: 40 | J79: 30 | K79: 1200
A80: 飞利浦MP5 | B80: 液晶屏 | C80: 950 | E80: 3 | F80: 2850
B81: 触摸屏 | C81: 600 | E81: 3 | F81: 1800
B82: 电源板 | C82: 300 | E82: 3 | F82: 900
B83: 主板 | C83: 1800 | E83: 3 | F83: 5400
B84: 高压板 | C84: 50 | E84: 4 | F84: 200
B85: 血压板 | C85: 700 | E85: 4 | F85: 2800
B86: 血氧板 | C86: 700 | E86: 4 | F86: 2800
B87: 心电板 | C87: 700 | E87: 2 | F87: 1400
B88: 按键板 | C88: 20 | E88: 2 | F88: 40
B89: 血氧心电插槽 | C89: 7 | E89: 2 | F89: 14
B90: 外壳 | C90: 50 | E90: 2 | F90: 100
B91: 电池 | C91: 600 | E91: 2 | F91: 1200
B92: 主板电池 | C92: 80 | E92: 2 | F92: 160
B93: 气泵 | C93: 350 | E93: 5 | F93: 1750 | H93: 110 | J93: 2 | K93: =H93*J93 -> 220
B94: 压力传感器 | C94: 50 | E94: 2 | F94: 100
B95: 放气阀 | C95: 260 | E95: 2 | F95: 520 | H95: 120 | J95: 2 | K95: =H95*J95 -> 240
B96: 编码器 | C96: 100 | E96: 2 | F96: 200
B97: 背光灯 | C97: 50 | E97: 2 | F97: 100
B98: 散热风扇 | C98: 7 | E98: 2 | F98: 14
B99: 双有创模块 | C99: 300 | E99: 2 | F99: 600
B100: 二氧化碳模块 | C100: 300 | E100: 2 | F100: 600
B101: BIS模块 | C101: 300 | E101: 2 | F101: 600
B102: 导联线 | C102: 180 | E102: 1 | F102: 180 | H102: 150 | J102: 30 | K102: =H102*J102 -> 4500
B103: 指脉氧 | C103: 180 | E103: 1 | F103: 180 | H103: 150 | J103: 30 | K103: 4500
B104: 血压袖带 | C104: 40 | E104: 1 | F104: 40 | H104: 40 | J104: 30 | K104: 1200
A105: 飞利浦G30/G30E/G60E等G系列 | B105: 液晶屏 | C105: 950 | E105: 3 | F105: 2850
B106: 触摸屏 | C106: 50 | E106: 3 | F106: 150
B107: 电源板 | C107: 750 | E107: 3 | F107: 2250
B108: 主板 | C108: 1500 | E108: 3 | F108: 4500
B109: 高压板 | C109: 50 | E109: 4 | F109: 200
B110: 血压板 | C110: 700 | E110: 4 | F110: 2800
B111: 血氧板 | C111: 700 | E111: 4 | F111: 2800
B112: 心电板 | C112: 700 | E112: 2 | F112: 1400
B113: 按键板 | C113: 20 | E113: 2 | F113: 40
B114: 血氧心电插槽 | C114: 7 | E114: 2 | F114: 14
B115: 外壳 | C115: 50 | E115: 2 | F115: 100
B116: 电池 | C116: 330 | E116: 2 | F116: 660
B117: 主板电池 | C117: 80 | E117: 2 | F117: 160
B118: 气泵 | C118: 300 | E118: 5 | F118: 1500 | H118: 110 | J118: 2 | K118: =H118*J118 -> 220
B119: 压力传感器 | C119: 50 | E119: 2 | F119: 100
B120: 放气阀 | C120: 260 | E120: 2 | F120: 520 | H120: 120 | J120: 2 | K120: =H120*J120 -> 240
B121: 编码器 | C121: 100 | E121: 2 | F121: 200
B122: 背光灯 | C122: 40 | E122: 2 | F122: 80
B123: 散热风扇 | C123: 7 | E123: 2 | F123: 14
B124: 双有创模块 | C124: 300 | E124: 2 | F124: 600
B125: 二氧化碳模块 | C125: 300 | E125: 2 | F125: 600
B126: BIS模块 | C126: 300 | E126: 2 | F126: 600
B127: 导联线 | C127: 180 | E127: 1 | F127: 180 | H127: 150 | J127: 20 | K127: =H127*J127 -> 3000
B128: 指脉氧 | C128: 180 | E128: 1 | F128: 180 | H128: 150 | J128: 20 | K128: 3000
B129: 血压袖带 | C129: 40 | E129: 1 | F129: 40 | H129: 40 | J129: 20 | K129: 800
A130: 光电PVM2701 | B130: 液晶屏 | C130: 950 | E130: 3 | F130: 2850
B131: 触摸屏 | C131: 600 | E131: 3 | F131: 1800
B132: 电源板 | C132: 300 | E132: 3 | F132: 900
B133: 主板 | C133: 1800 | E133: 3 | F133: =C133*E133 -> 5400
B134: 高压板 | C134: 50 | E134: 2 | F134: 100
B135: 血压板 | C135: 600 | E135: 4 | F135: 2400
B136: 血氧板 | C136: 700 | E136: 4 | F136: 2800
B137: 心电板 | C137: 700 | E137: 4 | F137: 2800
B138: 按键板 | C138: 20 | E138: 2 | F138: 40
B139: 血氧心电插槽 | C139: 7 | E139: 2 | F139: 14
B140: 外壳 | C140: 50 | E140: 2 | F140: 100
B141: 电池 | C141: 350 | E141: 2 | F141: 700
B142: 主板电池 | C142: 80 | E142: 2 | F142: 160
B143: 气泵 | C143: 300 | E143: 5 | F143: 1500 | H143: 110 | J143: 2 | K143: =H143*J143 -> 220
B144: 压力传感器 | C144: 50 | E144: 2 | F144: 100
B145: 放气阀 | C145: 260 | E145: 2 | F145: 520 | H145: 120 | J145: 2 | K145: =H145*J145 -> 240
B146: 编码器 | C146: 100 | E146: 2 | F146: 200
B147: 背光灯 | C147: 40 | E147: 2 | F147: 80
B148: 散热风扇 | C148: 7 | E148: 2 | F148: 14
B149: 双有创模块 | C149: 100 | E149: 2 | F149: 200
B150: 二氧化碳模块 | C150: 100 | E150: 2 | F150: 200
B151: BIS模块 | C151: 100 | E151: 2 | F151: 200
B152: 导联线 | C152: 180 | E152: 1 | F152: 180 | H152: 150 | J152: 30 | K152: =H152*J152 -> 4500
B153: 指脉氧 | C153: 180 | E153: 1 | F153: 180 | H153: 150 | J153: 30 | K153: 4500
B154: 血压袖带 | C154: 40 | E154: 1 | F154: 40 | H154: 40 | J154: 30 | K154: 1200
A155: 理邦IM系列 | B155: 液晶屏 | C155: 600 | E155: 3 | F155: 1800
B156: 触摸屏 | C156: 50 | E156: 3 | F156: 150
B157: 电源板 | C157: 300 | E157: 3 | F157: 900
B158: 主板 | C158: 1000 | E158: 3 | F158: 3000
B159: 高压板 | C159: 50 | E159: 4 | F159: =C159*E159 -> 200
B160: 血压板 | C160: 600 | E160: 4 | F160: 2400
B161: 血氧板 | C161: 700 | E161: 4 | F161: 2800
B162: 心电板 | C162: 700 | E162: 2 | F162: 1400
B163: 按键板 | C163: 20 | E163: 2 | F163: 40
B164: 血氧心电插槽 | C164: 7 | E164: 2 | F164: 14
B165: 外壳 | C165: 50 | E165: 2 | F165: 100
B166: 电池 | C166: 450 | E166: 2 | F166: 900
B167: 主板电池 | C167: 80 | E167: 2 | F167: 160
B168: 气泵 | C168: 300 | E168: 5 | F168: 1500 | H168: 110 | J168: 2 | K168: =H168*J168 -> 220
B169: 压力传感器 | C169: 50 | E169: 2 | F169: 100
B170: 放气阀 | C170: 260 | E170: 2 | F170: 520 | H170: 120 | J170: 2 | K170: =H170*J170 -> 240
B171: 编码器 | C171: 100 | E171: 2 | F171: 200
B172: 背光灯 | C172: 40 | E172: 2 | F172: 80
B173: 散热风扇 | C173: 7 | E173: 2 | F173: 14
B174: 双有创模块 | C174: 100 | E174: 2 | F174: 200
B175: 二氧化碳模块 | C175: 100 | E175: 2 | F175: 200
B176: BIS模块 | C176: 100 | E176: 2 | F176: 200
B177: 导联线 | C177: 180 | E177: 1 | F177: 180 | H177: 150 | J177: 30 | K177: =H177*J177 -> 4500
B178: 指脉氧 | C178: 180 | E178: 1 | F178: 180 | H178: 150 | J178: 30 | K178: 4500
B179: 血压袖带 | C179: 40 | E179: 1 | F179: 40 | H179: 40 | J179: 20 | K179: 800
A180: 理邦X8A/X10A系列 | B180: 液晶屏 | C180: 950 | E180: 3 | F180: 2850
B181: 触摸屏 | C181: 50 | E181: 3 | F181: 150
B182: 电源板 | C182: 300 | E182: 2 | F182: 600
B183: 主板 | C183: 1500 | E183: 3 | F183: 4500
B184: 高压板 | C184: 50 | E184: 2 | F184: 100
B185: 血压板 | C185: 600 | E185: 4 | F185: 2400
B186: 血氧板 | C186: 700 | E186: 4 | F186: 2800
B187: 心电板 | C187: 700 | E187: 4 | F187: 2800
B188: 按键板 | C188: 20 | E188: 2 | F188: 40
B189: 血氧心电插槽 | C189: 7 | E189: 2 | F189: 14
B190: 外壳 | C190: 50 | E190: 2 | F190: 100
B191: 电池 | C191: 450 | E191: 2 | F191: 900
B192: 主板电池 | C192: 80 | E192: 2 | F192: 160
B193: 气泵 | C193: 300 | E193: 5 | F193: 1500 | H193: 110 | J193: 2 | K193: =H193*J193 -> 220
B194: 压力传感器 | C194: 50 | E194: 2 | F194: 100
B195: 放气阀 | C195: 260 | E195: 2 | F195: 520 | H195: 120 | J195: 2 | K195: =H195*J195 -> 240
B196: 编码器 | C196: 100 | E196: 2 | F196: 200
B197: 背光灯 | C197: 40 | E197: 2 | F197: 80
B198: 散热风扇 | C198: 7 | E198: 2 | F198: 14
B199: 双有创模块 | C199: 300 | E199: 2 | F199: 600
B200: 二氧化碳模块 | C200: 300 | E200: 2 | F200: 600
... 47 more rows

Sheet 除颤类
A1: 除颤仪类配件价目表
B2: 公司名称： | K2: 单位：元
A3: 适配机型 | B3: 配件名称 | C3: 原厂 | H3: 兼容
C4: 最高限价（单价） | D4: 报价 | E4: 预计采购数量 | F4: 最高限价（合计） | G4: 维修费用（合计） | H4: 最高限价（单价） | I4: 报价 | J4: 预计采购数量 | K4: 最高限价（合计） | L4: 维修费用（合计）
A5: 迈瑞BeneHeart D3 | B5: 主控板 | C5: 2100 | E5: 1 | F5: =C5*E5 -> 2100
B6: 电池 | C6: 2000 | E6: 3 | F6: 6000
B7: 参数板 | C7: 400 | E7: 1 | F7: 400
B8: 电源板 | C8: 500 | E8: 1 | F8: 500
B9: 高压板 | C9: 500 | E9: 1 | F9: 500
B10: 显示屏 | C10: 1000 | E10: 1 | F10: 1000
B11: 按键板 | C11: 200 | E11: 1 | F11: 200
B12: 放电手柄 | C12: 2300 | E12: 1 | F12: 2300
B13: 热敏打印机 | C13: 1200 | E13: 1 | F13: 1200
A14: 迈瑞BeneHeart D1 | B14: 主控板 | C14: 2100 | E14: 1 | F14: 2100
B15: 电池 | C15: 2000 | E15: 3 | F15: 6000
B16: 参数板 | C16: 400 | E16: 1 | F16: 400
B17: 电源板 | C17: 500 | E17: 1 | F17: 500
B18: 高压板 | C18: 500 | E18: 1 | F18: 500
B19: 显示屏 | C19: 1000 | E19: 1 | F19: 1000
B20: 按键板 | C20: 200 | E20: 1 | F20: 200
B21: 放电手柄 | C21: 2300 | E21: 1 | F21: 2300
B22: 热敏打印机 | C22: 1200 | E22: 1 | F22: 1200
A23: 飞利浦M4735A | B23: 主控板 | C23: 2100 | E23: 1 | F23: 2100
B24: 电池 | C24: 2000 | E24: 2 | F24: 4000 | H24: 500 | J24: 2 | K24: =H24*J24 -> 1000
B25: 参数板 | C25: 400 | E25: 1 | F25: 400
B26: 电源板 | C26: 1400 | E26: 1 | F26: 1400
B27: 高压板 | C27: 500 | E27: 1 | F27: 500
B28: 显示屏 | C28: 500 | E28: 1 | F28: 500
B29: 按键板 | C29: 200 | E29: 1 | F29: 200
B30: 放电手柄 | C30: 2000 | E30: 1 | F30: 2000
B31: 热敏打印机 | C31: 1200 | E31: 1 | F31: 1200
A32: 飞利浦HeartStart XL+ | B32: 主控板 | C32: 2100 | E32: 1 | F32: 2100
B33: 电池 | C33: 2000 | E33: 3 | F33: 6000
B34: 参数板 | C34: 400 | E34: 1 | F34: 400
B35: 电源板 | C35: 1400 | E35: 1 | F35: 1400
B36: 高压板 | C36: 500 | E36: 1 | F36: 500
B37: 显示屏 | C37: 1000 | E37: 1 | F37: 1000
B38: 按键板 | C38: 200 | E38: 1 | F38: 200
B39: 放电手柄 | C39: 2300 | E39: 1 | F39: 2300
B40: 热敏打印机 | C40: 1200 | E40: 1 | F40: 1200
A41: 光电TEL-7621C | B41: 主控板 | C41: 2100 | E41: 1 | F41: 2100
B42: 电池 | C42: 2000 | E42: 2 | F42: 4000 | H42: 500 | J42: 2 | K42: =H42*J42 -> 1000
B43: 参数板 | C43: 400 | E43: 1 | F43: 400
B44: 电源板 | C44: 1400 | E44: 1 | F44: 1400
B45: 高压板 | C45: 500 | E45: 1 | F45: 500
B46: 显示屏 | C46: 500 | E46: 1 | F46: 500
B47: 按键板 | C47: 200 | E47: 1 | F47: 200
B48: 放电手柄 | C48: 2300 | E48: 1 | F48: 2300
B49: 热敏打印机 | C49: 1200 | E49: 1 | F49: 1200
A50: 光电TEL-5521C | B50: 主控板 | C50: 2100 | E50: 1 | F50: 2100
B51: 电池 | C51: 2000 | E51: 2 | F51: 4000 | H51: 500 | J51: 2 | K51: =H51*J51 -> 1000
B52: 参数板 | C52: 400 | E52: 1 | F52: 400
B53: 电源板 | C53: 1400 | E53: 1 | F53: 1400
B54: 高压板 | C54: 500 | E54: 1 | F54: 500
B55: 显示屏 | C55: 1000 | E55: 1 | F55: 1000
B56: 按键板 | C56: 200 | E56: 1 | F56: 200
B57: 放电手柄 | C57: 2300 | E57: 1 | F57: 2300
B58: 热敏打印机 | C58: 1200 | E58: 1 | F58: 1200
F59: =SUM(F5:F58) -> 81500 | K59: =SUM(K5:K58) -> 3000
E60: 合计 | F60: 最高限价 | G60: =F59+K59 -> 84500
A62: 以上报价包含配件更换服务费，配件质保1年

Sheet 心电小本类
A1: 麦迪克斯心电小本配件价目表
A2: 公司名称： | D2: 单位：元
A3: 配件名称 | B3: 麦迪克斯（原厂）
B4: 最高限价（单价） | C4: 报价 | D4: 预计采购数量 | E4: 最高限价（合计） | F4: 维修费用（合计）
A5: 成人夹子 | B5: 200 | D5: 10 | E5: =B5*D5 -> 2000
A6: 成人吸球 | B6: 300 | D6: 10 | E6: =B6*D6 -> 3000
A7: 儿童夹子 | B7: 200 | D7: 1 | E7: 200
A8: 儿童吸球 | B8: 300 | D8: 1 | E8: 300
A9: 后背电极延长线 | B9: 300 | D9: 1 | E9: 300
A10: 心电采集平板换新 | B10: 4000 | D10: 1 | E10: 4000
A11: 心电采集平板外壳 | B11: 500 | D11: 1 | E11: 500
A12: 心电采集平板电池 | B12: 600 | D12: 2 | E12: 1200
A13: 心电采集平板屏幕 | B13: 1000 | D13: 1 | E13: 1000
A14: 心电采集平板主板 | B14: 1100 | D14: 1 | E14: 1100
A15: 心电图平板专用适配器 | B15: 260 | D15: 1 | E15: 260
A16: 心电采集平板重装 | B16: 200 | D16: 10 | E16: 2000
A17: 蓝牙背夹换新 | B17: 2000 | D17: 5 | E17: 10000
A18: 蓝牙背夹电池 | B18: 500 | D18: 20 | E18: 10000
A19: 蓝牙背夹外壳 | B19: 500 | D19: 1 | E19: 500
A20: 蓝牙背夹主板 | B20: 800 | D20: 5 | E20: 4000
A21: 蓝牙背夹充电口 | B21: 100 | D21: 8 | E21: 800
A22: 手持台车轮子（白色大轮子） | B22: 100 | D22: 1 | E22: 100
A23: 手持台车轮子（黑色小轮子） | B23: 50 | D23: 1 | E23: 50
A24: 台车底座（含轮子） | B24: 500 | D24: 1 | E24: 500
A25: 台车放物台 | B25: 200 | D25: 1 | E25: 200
A26: 台车筐 | B26: 200 | D26: 1 | E26: 200
A27: 台车连杆 | B27: 100 | D27: 1 | E27: 100
A28: 台车整体换新 | B28: 2000 | D28: 1 | E28: 2000
A29: 心电图使用路由器 | B29: 300 | D29: 1 | E29: 300
A30: 导联线（心电图机通用） | B30: 750 | D30: 25 | E30: 18750
A31: 12导心电放大器换新 | B31: 8000 | D31: 3 | E31: 24000
A32: 12导心电放大器外壳 | B32: 500 | D32: 2 | E32: 1000
A33: 12导心电放大器芯片 | B33: 1500 | D33: 3 | E33: 4500
A34: 12导心电放大元件 | B34: 1000 | D34: 5 | E34: 5000
A35: 12导心电放大器主板 | B35: 2000 | D35: 2 | E35: 4000
A36: 蓝牙背夹充电线 | B36: 40 | D36: 50 | E36: 2000
A37: 平板电脑充电线 | B37: 20 | D37: 12 | E37: 240
A38: 心电图机专用USB插排 | B38: 100 | D38: 5 | E38: 500
D40: 最高限价 | E40: =SUM(E5:E38) -> 104600
A42: 以上报价包含配件更换服务费，配件质保1年

Sheet 输注泵类
A1: 输注泵类配件价目表
B2: 公司名称： | F2: 单位：元
A3: 适配机型 | B3: 配件名称 | C3: 原厂
C4: 最高限价（单价） | D4: 报价 | E4: 预计采购数量 | F4: 最高限价（合计） | G4: 维修费用（合计）
A5: 浙大史密斯 | B5: 主板 | C5: 600 | E5: 4 | F5: =C5*E5 -> 2400
B6: 电源板 | C6: 300 | E6: 4 | F6: 1200
B7: 电机驱动板 | C7: 350 | E7: 2 | F7: 700
B8: 电机驱动板连接线 | C8: 7 | E8: 2 | F8: 14
B9: 电机 | C9: 400 | E9: 2 | F9: 800
B10: 显示屏 | C10: 100 | E10: 2 | F10: 200
B11: 蠕动滑块 | C11: 80 | E11: 2 | F11: 160
B12: 推杆单元 | C12: 470 | E12: 2 | F12: 940
B13: 卡杆单元 | C13: 400 | E13: 2 | F13: 800
B14: 压力传感器 | C14: 100 | E14: 2 | F14: 200
B15: 滴液传感器 | C15: 50 | E15: 2 | F15: 100
B16: 按键膜 | C16: 200 | E16: 2 | F16: 400
B17: 编码器 | C17: 80 | E17: 2 | F17: 160
B18: 电池 | C18: 300 | E18: 2 | F18: 600
B19: 面贴 | C19: 50 | E19: 2 | F19: 100
B20: 喇叭组件 | C20: 7 | E20: 2 | F20: 14
B21: 固定座组件 | C21: 80 | E21: 2 | F21: 160
B22: 蠕动泵组件 | C22: 100 | E22: 2 | F22: 200
B23: 点滴夹组件 | C23: 50 | E23: 2 | F23: 100
B24: 起始位检测板 | C24: 100 | E24: 2 | F24: 200
B25: 气泡传感器 | C25: 200 | E25: 2 | F25: 400
B26: 泵门 | C26: 50 | E26: 2 | F26: 100
B27: 止液夹 | C27: 50 | E27: 2 | F27: 100
B28: 活塞检测板 | C28: 50 | E28: 2 | F28: 100
B29: 滑块板 | C29: 50 | E29: 2 | F29: 100
B30: 残留传感器 | C30: 50 | E30: 2 | F30: 100
B31: 规格识别板 | C31: 50 | E31: 2 | F31: 100
B32: 拨钮 | C32: 50 | E32: 2 | F32: 100
B33: 卡爪 | C33: 50 | E33: 2 | F33: 100
A34: 威利方舟 | B34: 主板 | C34: 600 | E34: 4 | F34: 2400
B35: 电源板 | C35: 300 | E35: 4 | F35: 1200
B36: 电机驱动板 | C36: 350 | E36: 2 | F36: 700
B37: 电机驱动板连接线 | C37: 7 | E37: 2 | F37: 14
B38: 电机 | C38: 400 | E38: 2 | F38: 800
B39: 显示屏 | C39: 100 | E39: 2 | F39: 200
B40: 蠕动滑块 | C40: 80 | E40: 2 | F40: 160
B41: 推杆单元 | C41: 470 | E41: 2 | F41: 940
B42: 卡杆单元 | C42: 400 | E42: 2 | F42: 800
B43: 压力传感器 | C43: 100 | E43: 2 | F43: 200
B44: 滴液传感器 | C44: 50 | E44: 2 | F44: 100
B45: 按键膜 | C45: 200 | E45: 2 | F45: 400
B46: 编码器 | C46: 80 | E46: 2 | F46: 160
B47: 电池 | C47: 300 | E47: 2 | F47: 600
B48: 面贴 | C48: 50 | E48: 2 | F48: 100
B49: 喇叭组件 | C49: 7 | E49: 2 | F49: 14
B50: 固定座组件 | C50: 80 | E50: 2 | F50: 160
B51: 蠕动泵组件 | C51: 100 | E51: 2 | F51: 200
B52: 点滴夹组件 | C52: 50 | E52: 2 | F52: 100
B53: 起始位检测板 | C53: 100 | E53: 2 | F53: 200
B54: 气泡传感器 | C54: 200 | E54: 2 | F54: 400
B55: 泵门 | C55: 50 | E55: 2 | F55: 100
B56: 止液夹 | C56: 50 | E56: 2 | F56: 100
B57: 活塞检测板 | C57: 50 | E57: 2 | F57: 100
B58: 滑块板 | C58: 50 | E58: 2 | F58: 100
B59: 残留传感器 | C59: 50 | E59: 2 | F59: 100
B60: 规格识别板 | C60: 50 | E60: 2 | F60: 100
B61: 拨钮 | C61: 50 | E61: 2 | F61: 100
B62: 卡爪 | C62: 50 | E62: 2 | F62: 100
A63: 长沙健源 | B63: 主板 | C63: 600 | E63: 4 | F63: 2400
B64: 电源板 | C64: 300 | E64: 4 | F64: 1200
B65: 电机驱动板 | C65: 350 | E65: 2 | F65: 700
B66: 电机驱动板连接线 | C66: 7 | E66: 2 | F66: 14
B67: 电机 | C67: 400 | E67: 2 | F67: 800
B68: 显示屏 | C68: 100 | E68: 2 | F68: 200
B69: 蠕动滑块 | C69: 80 | E69: 2 | F69: =C69*E69 -> 160
B70: 推杆单元 | C70: 470 | E70: 2 | F70: 940
B71: 卡杆单元 | C71: 400 | E71: 2 | F71: 800
B72: 压力传感器 | C72: 100 | E72: 2 | F72: 200
B73: 滴液传感器 | C73: 50 | E73: 2 | F73: 100
B74: 按键膜 | C74: 200 | E74: 2 | F74: 400
B75: 编码器 | C75: 80 | E75: 2 | F75: 160
B76: 电池 | C76: 300 | E76: 2 | F76: 600
B77: 面贴 | C77: 50 | E77: 2 | F77: 100
B78: 喇叭组件 | C78: 7 | E78: 2 | F78: 14
B79: 固定座组件 | C79: 80 | E79: 2 | F79: 160
B80: 蠕动泵组件 | C80: 100 | E80: 2 | F80: 200
B81: 点滴夹组件 | C81: 50 | E81: 2 | F81: 100
B82: 起始位检测板 | C82: 100 | E82: 2 | F82: 200
B83: 气泡传感器 | C83: 200 | E83: 2 | F83: 400
B84: 泵门 | C84: 50 | E84: 2 | F84: 100
B85: 止液夹 | C85: 50 | E85: 2 | F85: 100
B86: 活塞检测板 | C86: 50 | E86: 2 | F86: 100
B87: 滑块板 | C87: 50 | E87: 2 | F87: 100
B88: 残留传感器 | C88: 50 | E88: 2 | F88: 100
B89: 规格识别板 | C89: 50 | E89: 2 | F89: 100
B90: 拨钮 | C90: 50 | E90: 2 | F90: 100
B91: 卡爪 | C91: 50 | E91: 2 | F91: 100
A92: 科力建元 | B92: 主板 | C92: 600 | E92: 4 | F92: 2400
B93: 电源板 | C93: 300 | E93: 4 | F93: 1200
B94: 电机驱动板 | C94: 350 | E94: 2 | F94: 700
B95: 电机驱动板连接线 | C95: 7 | E95: 2 | F95: 14
B96: 电机 | C96: 400 | E96: 2 | F96: 800
B97: 显示屏 | C97: 100 | E97: 2 | F97: 200
B98: 蠕动滑块 | C98: 80 | E98: 2 | F98: 160
B99: 推杆单元 | C99: 470 | E99: 2 | F99: 940
B100: 卡杆单元 | C100: 400 | E100: 2 | F100: 800
B101: 压力传感器 | C101: 100 | E101: 2 | F101: 200
B102: 滴液传感器 | C102: 50 | E102: 2 | F102: 100
B103: 按键膜 | C103: 200 | E103: 2 | F103: 400
B104: 编码器 | C104: 80 | E104: 2 | F104: 160
B105: 电池 | C105: 300 | E105: 2 | F105: 600
B106: 面贴 | C106: 50 | E106: 2 | F106: 100
B107: 喇叭组件 | C107: 7 | E107: 2 | F107: 14
B108: 固定座组件 | C108: 80 | E108: 2 | F108: 160
B109: 蠕动泵组件 | C109: 100 | E109: 2 | F109: 200
B110: 点滴夹组件 | C110: 50 | E110: 2 | F110: 100
B111: 起始位检测板 | C111: 100 | E111: 2 | F111: 200
B112: 气泡传感器 | C112: 200 | E112: 2 | F112: 400
B113: 泵门 | C113: 50 | E113: 2 | F113: 100
B114: 止液夹 | C114: 50 | E114: 2 | F114: 100
B115: 活塞检测板 | C115: 50 | E115: 2 | F115: 100
B116: 滑块板 | C116: 50 | E116: 2 | F116: 100
B117: 残留传感器 | C117: 50 | E117: 2 | F117: 100
B118: 规格识别板 | C118: 50 | E118: 2 | F118: 100
B119: 拨钮 | C119: 50 | E119: 2 | F119: 100
B120: 卡爪 | C120: 50 | E120: 2 | F120: 100
A121: 圣诺 | B121: 主板 | C121: 600 | E121: 4 | F121: 2400
B122: 电源板 | C122: 300 | E122: 4 | F122: 1200
B123: 电机驱动板 | C123: 350 | E123: 2 | F123: 700
B124: 电机驱动板连接线 | C124: 7 | E124: 2 | F124: 14
B125: 电机 | C125: 400 | E125: 2 | F125: 800
B126: 显示屏 | C126: 100 | E126: 2 | F126: 200
B127: 蠕动滑块 | C127: 80 | E127: 2 | F127: 160
B128: 推杆单元 | C128: 470 | E128: 2 | F128: 940
B129: 卡杆单元 | C129: 400 | E129: 2 | F129: 800
B130: 压力传感器 | C130: 100 | E130: 2 | F130: 200
B131: 滴液传感器 | C131: 50 | E131: 2 | F131: 100
B132: 按键膜 | C132: 200 | E132: 2 | F132: 400
B133: 编码器 | C133: 80 | E133: 2 | F133: =C133*E133 -> 160
B134: 电池 | C134: 300 | E134: 2 | F134: 600
B135: 面贴 | C135: 50 | E135: 2 | F135: 100
B136: 喇叭组件 | C136: 7 | E136: 2 | F136: 14
B137: 固定座组件 | C137: 80 | E137: 2 | F137: 160
B138: 蠕动泵组件 | C138: 100 | E138: 2 | F138: 200
B139: 点滴夹组件 | C139: 50 | E139: 2 | F139: 100
B140: 起始位检测板 | C140: 100 | E140: 2 | F140: 200
B141: 气泡传感器 | C141: 200 | E141: 2 | F141: 400
B142: 泵门 | C142: 50 | E142: 2 | F142: 100
B143: 止液夹 | C143: 50 | E143: 2 | F143: 100
B144: 活塞检测板 | C144: 50 | E144: 2 | F144: 100
B145: 滑块板 | C145: 50 | E145: 2 | F145: 100
B146: 残留传感器 | C146: 50 | E146: 2 | F146: 100
B147: 规格识别板 | C147: 50 | E147: 2 | F147: 100
B148: 拨钮 | C148: 50 | E148: 2 | F148: 100
B149: 卡爪 | C149: 50 | E149: 2 | F149: 100
A150: 麦科田 | B150: 主板 | C150: 600 | E150: 4 | F150: 2400
B151: 电源板 | C151: 300 | E151: 4 | F151: 1200
B152: 电机驱动板 | C152: 350 | E152: 2 | F152: 700
B153: 电机驱动板连接线 | C153: 7 | E153: 2 | F153: 14
B154: 电机 | C154: 400 | E154: 2 | F154: 800
B155: 显示屏 | C155: 100 | E155: 2 | F155: 200
B156: 蠕动滑块 | C156: 80 | E156: 2 | F156: 160
B157: 推杆单元 | C157: 470 | E157: 2 | F157: 940
B158: 卡杆单元 | C158: 400 | E158: 2 | F158: 800
B159: 压力传感器 | C159: 100 | E159: 2 | F159: 200
B160: 滴液传感器 | C160: 50 | E160: 2 | F160: 100
B161: 按键膜 | C161: 200 | E161: 2 | F161: 400
B162: 编码器 | C162: 80 | E162: 2 | F162: 160
B163: 电池 | C163: 300 | E163: 2 | F163: 600
B164: 面贴 | C164: 50 | E164: 2 | F164: 100
B165: 喇叭组件 | C165: 7 | E165: 2 | F165: 14
B166: 固定座组件 | C166: 80 | E166: 2 | F166: 160
B167: 蠕动泵组件 | C167: 100 | E167: 2 | F167: 200
B168: 点滴夹组件 | C168: 50 | E168: 2 | F168: 100
B169: 起始位检测板 | C169: 100 | E169: 2 | F169: 200
B170: 气泡传感器 | C170: 200 | E170: 2 | F170: 400
B171: 泵门 | C171: 50 | E171: 2 | F171: 100
B172: 止液夹 | C172: 50 | E172: 2 | F172: 100
B173: 活塞检测板 | C173: 50 | E173: 2 | F173: 100
B174: 滑块板 | C174: 50 | E174: 2 | F174: 100
B175: 残留传感器 | C175: 50 | E175: 2 | F175: 100
B176: 规格识别板 | C176: 50 | E176: 2 | F176: 100
B177: 拨钮 | C177: 50 | E177: 2 | F177: 100
B178: 卡爪 | C178: 50 | E178: 2 | F178: 100
A179: 七喜 | B179: 主板 | C179: 600 | E179: 4 | F179: 2400
B180: 电源板 | C180: 300 | E180: 4 | F180: 1200
B181: 电机驱动板 | C181: 350 | E181: 2 | F181: 700
B182: 电机驱动板连接线 | C182: 7 | E182: 2 | F182: 14
B183: 电机 | C183: 400 | E183: 2 | F183: 800
B184: 显示屏 | C184: 100 | E184: 2 | F184: 200
B185: 蠕动滑块 | C185: 80 | E185: 2 | F185: 160
B186: 推杆单元 | C186: 470 | E186: 2 | F186: 940
B187: 卡杆单元 | C187: 400 | E187: 2 | F187: 800
B188: 压力传感器 | C188: 100 | E188: 2 | F188: 200
B189: 滴液传感器 | C189: 50 | E189: 2 | F189: 100
B190: 按键膜 | C190: 200 | E190: 2 | F190: 400
B191: 编码器 | C191: 80 | E191: 2 | F191: 160
B192: 电池 | C192: 300 | E192: 2 | F192: 600
B193: 面贴 | C193: 50 | E193: 2 | F193: 100
B194: 喇叭组件 | C194: 7 | E194: 2 | F194: 14
B195: 固定座组件 | C195: 80 | E195: 2 | F195: 160
B196: 蠕动泵组件 | C196: 100 | E196: 2 | F196: 200
B197: 点滴夹组件 | C197: 50 | E197: 2 | F197: =C197*E197 -> 100
B198: 起始位检测板 | C198: 100 | E198: 2 | F198: 200
B199: 气泡传感器 | C199: 200 | E199: 2 | F199: 400
B200: 泵门 | C200: 50 | E200: 2 | F200: 100
... 38 more rows

Sheet 呼吸机、麻醉机
A1: 呼吸机、麻醉机类配件价目表
B2: 公司名称： | J2: 单位：元
A3: 适配机型 | B3: 配件名称 | C3: 原厂 | H3: 兼容
C4: 最高限价（单价） | D4: 报价 | E4: 预计采购数量 | F4: 最高限价（合计） | G4: 维修费用（合计） | H4: 最高限价（单价） | I4: 报价 | J4: 预计采购数量 | K4: 最高限价（合计） | L4: 维修费用（合计）
A5: 纽邦360呼吸机 | B5: 蓄电池 | C5: 800 | E5: 1 | F5: 800
B6: 氧传感器 | H6: 800 | J6: 1 | K6: 800
A7: SAVINA呼吸机 | B7: 蓄电池 | C7: 1800 | E7: 1 | F7: 1800
B8: 氧电池 | C8: 600 | E8: 1 | F8: 600
B9: 呼气阀 | C9: 1400 | E9: 1 | F9: 1400
B10: 电源模块 | H10: 8000 | J10: 1 | K10: 8000
B11: 主板 | H11: 7000 | J11: 1 | K11: 7800
B12: 流量传感器（5个） | C12: 1150 | E12: 1 | F12: 1150
B13: 涡轮驱动板 | H13: 4500 | J13: 1 | K13: 4500
A14: 飞利浦V200/V60呼吸机 | B14: 蓄电池 | H14: 1800 | J14: 1 | K14: 1800
B15: 屏幕控制板 | C15: 1600 | E15: 1 | F15: 1600
B16: 传感器板 | C16: 6000 | E16: 1
B17: 电源板 | C17: 3000 | E17: 1
B18: 驱动板 | C18: 4000 | E18: 1
B19: 流量传感器 | C19: 5000 | E19: 1
A20: 科曼V3A呼吸机 | B20: AC 电源板 | C20: 2200 | E20: 1 | F20: 2200
B21: DC 电源板 | C21: 3200 | E21: 1 | F21: 3200
B22: 电池转接板 | C22: 290 | E22: 1 | F22: 290
B23: IMX7核心板 | C23: 2200 | E23: 1 | F23: 2200
B24: 监控板 | C24: 4500 | E24: 1 | F24: 4500
B25: 传感器板 | C25: 3800 | E25: 1 | F25: 3800
A26: 谊安VG70呼吸机 | B26: 氧传感器 | C26: 800 | E26: 1 | F26: 800
B27: 锂电池RRC2024 | C27: 2000 | E27: 1 | F27: 2000
B28: 开关电源 | C28: 3000 | E28: 1 | F28: 3000
B29: NBP转接板 | C29: 2500 | E29: 1 | F29: 2500
B30: NBP电源板 | C30: 5000 | E30: 1 | F30: 5000
B31: 吸气控制阀 | C31: 3500 | E31: 1 | F31: 3500
B32: NBP核心板 | C32: 5800 | E32: 1 | F32: 5800
B33: NBP主控板 | C33: 6800 | E33: 1 | F33: 6800
B34: 驱动器d30/5/4q | C34: 4000 | E34: 1 | F34: 4000
B35: 驱动器母板d30/5/4q | C35: 3200 | E35: 1 | F35: 3200
B36: P/C104单板机套件，工业级CF卡 | C36: 8000 | E36: 1 | F36: 8000
B37: 驱动涡轮 | C37: 8000 | E37: 1 | F37: 8000
B38: 熔断器T250V/3.15A | C38: 10 | E38: 10 | F38: 100
A39: 迈瑞sv系列呼吸机 | B39: 呼吸机氧电池 | C39: 560 | E39: 1 | F39: 560
B40: 呼吸机呼气阀 | C40: 1450 | E40: 1 | F40: 1450
B41: 呼吸机吸气阀 | C41: 1450 | E41: 1 | F41: 1450
B42: 锂电池 | C42: 1550 | E42: 1 | F42: 1550
B43: 迈瑞dcdc板 | H43: 1000 | J43: 1 | K43: 1000
B44: 氧气比例电磁阀及连接线 | C44: 4000 | E44: 1 | F44: 4000
B45: 空气流量传感器 | C45: 3500 | E45: 1 | F45: 3500
B46: 氧气流量传感器 | C46: 3500 | E46: 1 | F46: 3500
B47: 过滤器 | C47: 280 | E47: 1 | F47: 280
B48: 吸气阀组件 | C48: 2500 | E48: 1 | F48: 2500
B49: 雾化阀 | C49: 4100 | E49: 1 | F49: 4100
A50: 迈柯唯呼吸机 | B50: 氧电池 | H50: 600 | J50: 1 | K50: 600
B51: 锂电池 | H51: 1500 | J51: 1 | K51: 1500
B52: 1771板 | H52: 8000 | J52: 1 | K52: 8000
B53: 呼出盒 | H53: 3500 | J53: 1 | K53: 3500
B54: 按键板 | H54: 1500 | J54: 1 | K54: 1500
A55: 各品牌呼吸机 | B55: 湿化器MR810维修 | C55: 850 | E55: 1 | F55: 850
B56: 湿化器MR850维修 | C56: 1800 | E56: 1 | F56: 1800
B57: 湿化器MR850连接线维修 | C57: 1250 | E57: 1 | F57: 1250
B58: 模拟肺 | H58: 600 | J58: 1 | K58: 600
B59: 氧气减压表 | C59: 300 | E59: 1 | F59: 300
A60: 德尔格麻醉机 | B60: 蓄电池 | H60: 800 | J60: 1 | K60: 800
B61: 氧电池 | H61: 600 | J61: 1 | K61: 600
B62: 保养套件 | C62: 5000 | E62: 1 | F62: 5000
B63: 主板 | H63: 8200 | J63: 1 | K63: 8200
B64: 电源 | H64: 5100 | J64: 1 | K64: 5100
B65: 流量剂 | H65: 3500 | J65: 1 | K65: 3500
B66: 减压阀 | C66: 2000 | E66: 1 | F66: 2000
B67: 编码器 | C67: 1800 | E67: 1 | F67: 1800
A68: 迈瑞麻醉机 | B68: 监控板 | H68: 4000 | J68: 1 | K68: 4000
B69: 流量传感器 | C69: 500 | E69: 1 | F69: 500
B70: 风箱折叠囊 | H70: 600 | J70: 1 | K70: 600
B71: 压力开关 | C71: 800 | E71: 1 | F71: 800
B72: 保养套件 | C72: 4800 | E72: 1 | F72: 4800
B73: 流量监控板 | C73: 6500 | E73: 1 | F73: 6500
B74: 触摸屏 | C74: 4800 | E74: 1 | F74: 4800
B75: APL阀 | C75: 2500 | E75: 1 | F75: 2500
B76: 钠石灰罐 | C76: 4500 | E76: 1 | F76: 4500
B77: 电源板 | H77: 2000 | J77: 1 | K77: 2000
F78: =SUM(F5:F77) -> 136530 | K78: =SUM(K5:K77) -> 64400
E80: 合计 | F80: 最高限价 | G80: =F78+K78 -> 200930
A82: 以上报价包含配件更换服务费，配件质保1年
